bitfinex/quotes_ETHUSD_20250804
["timestamp","ask_amount","ask_price","bid_price","bid_amount"]
[1754297836819,4.4328,3556.2,3556.0,2.8121316]
[1754297837194,4.4328,3556.2,3555.9,2.81222756]
[1754297837324,0.1408,3556.2,3556.1,2.8120694]
[1754297837519,6.8988,3556.3,3556.2,2.81199032]
[1754297838265,6.8988,3556.3,3556.1,2.8120694]
[1754297838266,11.1908,3556.3,3556.1,2.8120652]
[1754297838561,11.1908,3556.3,3556.0,2.81212193]
[1754297838962,6.8988,3556.3,3555.8,2.95303859]
[1754297839118,4.292,3556.2,3555.9,2.81221513]
[1754297839320,4.292,3556.2,3556.0,2.81213738]
[1754297839524,4.292,3556.1,3556.0,2.81213738]
[1754297839762,4.292,3556.1,3556.0,5.81213738]
[1754297840602,4.292,3556.1,3556.0,3.72386364]
[1754297840728,6.758,3556.3,3556.2,2.81199032]
[1754297840928,11.049,3556.3,3556.2,2.81199032]
[1754297842124,6.758,3556.3,3556.2,2.81199032]
[1754297842327,11.049,3556.3,3556.2,2.81199032]
[1754297849291,11.048,3556.3,3556.2,2.81199032]
[1754297852262,11.048,3556.3,3555.9,0.002]
[1754297852594,0.1408,3556.2,3555.9,0.002]
[1754297852797,4.29,3556.1,3555.9,2.8141902]
[1754297853165,4.29,3556.1,3555.9,3.002]
[1754297853383,4.29,3556.1,3555.9,2.81421915]
[1754297853571,4.29,3556.1,3555.9,0.002]
[1754297856013,4.29,3556.1,3555.9,2.81420658]
[1754297856439,4.29,3556.1,3556.0,2.81214848]
[1754297856885,4.29,3556.1,3555.9,2.81420127]
[1754297857077,4.29,3556.1,3556.0,2.81214848]
[1754297860212,0.1408,3556.2,3556.1,2.8120694]
[1754297860513,6.758,3556.3,3556.2,2.81199032]
[1754297860720,11.047,3556.3,3556.2,2.81199032]
[1754297860917,11.047,3556.3,3556.2,2.95279032]
[1754297861675,6.758,3556.3,3556.2,2.95279032]
[1754297861880,11.047,3556.3,3556.2,15.52471132]
[1754297862721,11.047,3556.3,3556.2,3.88851611]
[1754297865037,4.289,3556.3,3556.2,3.88851611]
[1754297866726,4.289,3556.3,3556.2,2.95279032]
[1754297869336,4.289,3556.3,3556.2,2.81199032]
[1754297871061,4.289,3556.3,3556.1,3.16846917]
[1754297871364,4.4298,3556.3,3556.1,2.81206193]
[1754297872261,4.4298,3556.3,3556.2,2.81199032]
[1754297872669,4.4298,3556.3,3556.1,2.81205474]
[1754297872965,5.03050305,3556.3,3555.9,0.002]
[1754297873638,5.03050305,3556.3,3555.9,2.81417694]
[1754297873839,5.03050305,3556.3,3556.0,2.81213657]
[1754297874041,4.4298,3556.3,3556.1,2.81205934]
[1754297874558,4.4298,3556.3,3556.1,0.21462096]
[1754297874765,4.4298,3556.3,3556.0,2.81212141]
[1754297875737,4.4298,3556.3,3556.1,2.8120605]
[1754297876949,4.4298,3556.3,3555.9,0.002]
[1754297877154,4.4298,3556.3,3556.1,2.81206534]
[1754297877654,4.4298,3556.3,3556.0,2.8121128]
[1754297877976,4.45141232,3556.3,3555.9,0.002]
[1754297878139,5.90229522,3556.3,3555.9,2.81419888]
[1754297878578,5.90229522,3556.3,3555.9,0.002]
[1754297878884,0.1408,3556.1,3555.9,0.002]
[1754297879087,4.288,3556.0,3555.9,0.002]
[1754297880645,5.16148271,3556.0,3555.9,0.002]
[1754297881068,5.71148271,3556.0,3555.9,0.002]
[1754297882568,8.52363119,3556.0,3555.9,0.002]
[1754297882773,14.42987823,3556.0,3555.9,0.002]
[1754297882974,17.42987823,3556.0,3555.9,0.002]
[1754297883154,29.06607344,3556.0,3555.9,0.002]
[1754297883575,17.42987823,3556.0,3555.9,0.002]
[1754297884988,13.14187823,3556.0,3555.9,0.002]
[1754297885150,17.42987823,3556.0,3555.9,0.002]
[1754297885350,13.14187823,3556.0,3555.9,0.002]
[1754297885547,10.32972975,3556.0,3555.9,0.002]
[1754297885797,10.74424704,3556.0,3555.9,0.002]
[1754297886194,10.19424704,3556.0,3555.9,2.81422756]
[1754297887586,13.55639552,3556.0,3555.9,0.002]
[1754297887785,10.74424704,3556.0,3555.9,0.002]
[1754297888316,13.55639552,3556.0,3555.9,0.002]
[1754297888828,15.20741506,3556.0,3555.9,0.002]
[1754297889840,12.39526658,3556.0,3555.9,0.002]
[1754297890042,15.20741506,3556.0,3555.9,0.002]
[1754297890224,12.39526658,3556.0,3555.9,0.002]
[1754297890754,12.39426658,3556.0,3555.9,0.002]
[1754297891127,15.20641506,3556.0,3555.9,0.002]
[1754297892046,18.20641506,3556.0,3555.9,0.002]
[1754297894867,11.10726658,3556.0,3555.9,0.002]
[1754297895042,15.39426658,3556.0,3555.9,0.002]
[1754297895787,8.10726658,3556.0,3555.9,0.002]
[1754297896076,10.91941506,3556.0,3555.9,0.002]
[1754297896280,15.20641506,3556.0,3555.9,0.002]
[1754297896841,16.89541506,3556.0,3555.9,0.002]
[1754297897086,18.20641506,3556.0,3555.9,0.002]
[1754297899284,29.84261027,3556.0,3555.9,0.002]
[1754297899454,31.53161027,3556.0,3555.9,0.002]
[1754297902324,61.53161027,3556.0,3555.9,0.002]
[1754297902690,61.53161027,3556.0,3555.6,0.002]
[1754297902894,22.59190708,3555.6,3555.5,0.002]
[1754297903113,15.24271187,3555.6,3555.5,0.002]
[1754297903889,10.95571187,3555.6,3555.5,0.002]
[1754297904239,13.55371187,3555.6,3555.5,0.002]
[1754297904951,13.55371187,3555.6,3554.6,0.002]
[1754297904952,6.36317692,3554.7,3554.6,0.002]
[1754297905279,11.70860362,3554.7,3554.6,0.002]
[1754297909861,11.70960362,3554.7,3554.6,0.002]
[1754297910021,17.61385065,3554.7,3554.6,0.002]
[1754297912254,10.51267373,3554.7,3554.6,0.002]
[1754297912455,10.51267373,3554.7,3554.6,2.81525606]
[1754297912456,6.04504703,3554.7,3554.6,2.81525606]
[1754297912754,10.33304703,3554.7,3554.6,0.002]
[1754297912961,10.88304703,3554.7,3554.6,0.002]
[1754297913120,6.59504703,3554.7,3554.6,0.002]
[1754297913459,10.88304703,3554.7,3554.6,0.002]
[1754297914738,6.59504703,3554.7,3554.6,2.81525606]
[1754297914964,10.88304703,3554.7,3554.6,2.81525606]
[1754297915973,10.88304703,3554.7,3554.6,0.002]
[1754297917739,10.88304703,3554.7,3554.6,2.81525606]
[1754297918053,10.88304703,3554.7,3554.6,0.002]
[1754297919058,10.88304703,3554.7,3554.6,2.81525606]
[1754297921764,6.04504703,3554.7,3554.6,2.81525606]
[1754297921954,10.33204703,3554.7,3554.6,2.81525606]
[1754297922343,6.04504703,3554.7,3554.6,2.81525606]
[1754297922558,10.33204703,3554.7,3554.6,2.81525606]
[1754297922771,6.04504703,3554.7,3554.6,2.81525606]
[1754297922935,10.19124703,3554.7,3554.6,3.37811575]
[1754297924267,10.19124703,3554.7,3554.6,2.81525606]
[1754297926367,10.19124703,3554.7,3554.6,0.002]
[1754297926568,10.33204703,3554.7,3554.6,0.002]
[1754297926773,10.88204703,3554.7,3554.6,0.002]
[1754297927573,13.69522395,3554.7,3554.6,0.002]
[1754297927883,15.34604975,3554.7,3554.6,0.002]
[1754297928083,12.53287283,3554.7,3554.6,0.002]
[1754297928459,15.34604975,3554.7,3554.6,0.002]
[1754297933048,12.39207283,3554.7,3554.6,0.002]
[1754297933249,12.53287283,3554.7,3554.6,0.002]
[1754297935079,10.88204703,3554.7,3554.6,0.002]
[1754297935587,6.59504703,3554.7,3554.6,0.002]
[1754297935897,10.88204703,3554.7,3554.6,0.002]
[1754297937079,10.33204703,3554.7,3554.6,2.81525606]
[1754297937280,6.04504703,3554.7,3554.6,5.81525606]
[1754297937480,10.33204703,3554.7,3554.6,5.81525606]
[1754297937869,10.19124703,3554.7,3554.6,5.81525606]
[1754297939399,10.19124703,3554.7,3554.6,3.002]
[1754297939711,10.19124703,3554.7,3554.6,0.002]
[1754297940597,13.55442395,3554.7,3554.6,0.002]
[1754297940802,14.58762865,3554.7,3554.6,0.002]
[1754297941165,11.77445173,3554.7,3554.6,0.002]
[1754297941566,14.58762865,3554.7,3554.6,0.002]
[1754297943067,11.77445173,3554.7,3554.6,0.002]
[1754297943298,14.58762865,3554.7,3554.6,0.002]
[1754297945497,11.77445173,3554.7,3554.6,0.002]
[1754297945816,14.58762865,3554.7,3554.6,0.002]
[1754297946405,11.77445173,3554.7,3554.6,0.002]
[1754297947866,5.90424703,3554.7,3554.6,2.81525606]
[1754297948274,10.19024703,3554.7,3554.6,2.81525606]
[1754297948572,10.19024703,3554.7,3554.6,0.002]
[1754297948772,10.19024703,3554.7,3554.6,2.81525606]
[1754297948978,10.19024703,3554.7,3554.6,0.002]
[1754297949190,11.91415173,3554.7,3554.6,0.002]
[1754297949503,10.88104703,3554.7,3554.6,2.81525606]
[1754297949661,6.59504703,3554.7,3554.6,0.002]
[1754297949865,10.88104703,3554.7,3554.6,0.002]
[1754297950305,6.59504703,3554.7,3554.6,0.002]
[1754297950507,10.88104703,3554.7,3554.6,0.002]
[1754297951473,10.88104703,3554.7,3554.6,2.81525606]
[1754297954605,10.88104703,3554.7,3554.6,0.002]
[1754297958825,6.59504703,3554.7,3554.6,0.002]
[1754297958996,10.88004703,3554.7,3554.6,0.002]
[1754297959530,10.88004703,3554.7,3554.6,2.81525606]
[1754297959731,6.04504703,3554.7,3554.6,2.81525606]
[1754297959892,10.18924703,3554.7,3554.6,2.81525606]
[1754297960097,5.90424703,3554.7,3554.6,2.81525606]
[1754297960311,0.1408,3555.1,3555.0,2.81293952]
[1754297960516,4.285,3555.1,3555.0,2.81293952]
[1754297960689,6.761,3555.2,3555.1,2.81286039]
[1754297961033,11.046,3555.2,3555.1,2.81286039]
[1754297962441,12.16468,3555.2,3554.7,2.81317692]
[1754297962643,0.1408,3555.1,3554.6,0.002]
[1754297962810,4.285,3555.0,3554.9,2.81298541]
[1754297963541,4.285,3555.0,3554.8,2.81307395]
[1754297963906,4.285,3555.0,3554.9,2.81301865]
[1754297964109,4.285,3555.0,3554.6,0.002]
[1754297964295,4.285,3555.0,3554.9,2.81301865]
[1754297965299,4.285,3555.0,3554.8,2.81304314]
[1754297965499,4.285,3555.0,3554.6,0.002]
[1754297965722,4.285,3555.0,3554.7,2.81317692]
[1754297965938,4.285,3555.0,3554.8,2.8130674]
[1754297967131,4.285,3555.0,3554.7,2.81314195]
[1754297967443,4.285,3555.0,3554.6,0.002]
[1754297967606,5.40368,3555.0,3554.6,0.002]
[1754297967814,0.1408,3554.8,3554.6,0.002]
[1754297967994,4.285,3554.7,3554.6,2.81525606]
[1754297970434,0.1408,3554.8,3554.7,2.81317692]
[1754297970633,0.1408,3555.5,3554.9,2.81294762]
[1754297970799,0.1418,3555.9,3555.8,2.81230665]
[1754297971001,4.286,3555.9,3555.8,2.81230665]
[1754297971508,0.001,3555.9,3555.8,2.81230665]
[1754297971836,4.285,3555.9,3555.8,2.81230665]
[1754297972208,4.285,3555.9,3555.8,2.95310665]
[1754297972610,4.285,3555.9,3555.0,0.29818794]
[1754297972818,0.16241232,3555.8,3555.5,2.81248736]
[1754297973126,4.284,3555.7,3555.5,2.81248736]
[1754297973462,4.284,3555.7,3555.4,2.81259298]
[1754297973760,0.1408,3555.6,3555.4,2.81259279]
[1754297974416,0.1408,3555.6,3555.1,0.1408]
[1754297974856,0.1408,3555.6,3555.4,2.81257147]
[1754297975030,0.1408,3555.6,3555.5,2.81254394]
[1754297977581,0.1408,3555.6,3555.1,0.1408]
[1754297977783,0.1408,3555.6,3555.2,2.81272018]
[1754297977980,0.1408,3555.6,3555.1,2.95359429]
[1754297978281,0.1408,3555.6,3555.4,2.81261386]
[1754297978459,0.1408,3555.6,3555.5,2.81254394]
[1754297978660,4.4238,3555.6,3555.5,2.81254394]
[1754297978860,4.4238,3555.6,3555.1,2.81286039]
[1754297979086,4.4238,3555.6,3555.2,2.81273509]
[1754297979378,8.55040582,3555.6,3555.0,2.95366582]
[1754297979583,5.73793468,3555.6,3555.1,2.81285912]
[1754297979805,5.73793468,3555.6,3555.0,2.81289372]
[1754297979806,0.57161232,3555.5,3555.0,2.81289372]
[1754297979947,0.1408,3555.3,3555.0,2.81289372]
[1754297980142,4.283,3555.2,3555.0,2.81289372]
[1754297980341,4.283,3555.2,3555.1,2.81286039]
[1754297980953,4.283,3555.2,3554.8,0.1408]
[1754297980954,4.283,3555.2,3554.8,2.95388181]
[1754297981153,0.1408,3554.9,3554.8,2.81308181]
[1754297981353,4.283,3554.9,3554.8,2.81308181]
[1754297981557,4.283,3554.9,3554.6,2.81518517]
[1754297981558,1.31413468,3555.6,3554.9,2.81301865]
[1754297981761,0.1408,3555.2,3555.1,2.8128147]
[1754297981971,4.4238,3555.2,3555.1,2.8128147]
[1754297982281,4.4238,3555.2,3555.0,2.81289297]
[1754297983385,4.4238,3555.2,3554.9,2.8129718]
[1754297983759,4.4238,3555.2,3555.0,2.81293651]
[1754297984155,4.4238,3555.2,3554.8,2.81309778]
[1754297984361,4.4238,3555.2,3554.9,2.81294581]
[1754297984866,4.4238,3555.2,3554.9,2.81297352]
[1754297985253,4.4238,3555.2,3555.0,2.81293023]
[1754297985466,4.4238,3555.2,3554.9,2.81299239]
[1754297985847,4.4238,3555.2,3555.0,2.81293688]
[1754297988989,4.4238,3555.2,3555.1,2.81286039]
[1754297989292,4.283,3555.2,3555.0,2.81286554]
[1754297989790,4.283,3555.2,3555.0,2.81291941]
[1754297991088,4.283,3555.2,3554.9,2.81298909]
[1754297991595,4.283,3555.2,3555.0,2.81293115]
[1754297991770,4.283,3555.2,3554.7,2.95395761]
[1754297991969,4.283,3555.2,3555.0,2.81293182]
[1754297992668,4.283,3555.2,3555.1,2.81286039]
[1754297993185,0.1408,3555.7,3555.6,2.81244625]
[1754297993393,4.4238,3555.7,3555.6,2.81244625]
[1754297994290,6.759,3555.8,3555.7,2.81238574]
[1754297994798,11.042,3555.8,3555.7,2.81238574]
[1754297997914,11.042,3555.8,3555.6,2.81244006]
[1754297998128,11.042,3555.8,3555.7,2.81238574]
[1754298000704,6.759,3555.8,3555.7,2.81238574]
[1754298000889,0.001,3555.9,3555.8,2.81230665]
[1754298001209,4.283,3555.9,3555.8,5.98122971]
[1754298001396,4.283,3555.9,3555.8,5.95310665]
[1754298002108,0.001,3556.3,3556.2,2.81199032]
[1754298002350,1e-08,3556.3,3556.2,4.81923946]
[1754298002606,0.001,3556.8,3556.6,2.81167407]
[1754298002809,1e-08,3556.8,3556.7,5.81159501]
[1754298003286,0.001,3558.0,3557.9,2.81064672]
[1754298003920,4.283,3558.0,3557.8,2.81071661]
[1754298004126,4.283,3558.0,3557.0,3.844739]
[1754298004270,4.283,3558.0,3557.1,0.1408]
[1754298004271,0.55,3557.8,3557.1,0.1408]
[1754298004470,0.1408,3557.5,3557.0,2.95212826]
[1754298004706,0.1408,3557.3,3556.9,2.81142105]
[1754298005106,4.281,3557.2,3556.9,2.81142105]
[1754298005307,4.281,3557.2,3557.1,2.8112551]
[1754298006104,4.281,3557.2,3557.0,2.81133343]
[1754298006306,4.281,3557.2,3557.1,2.81127885]
[1754298006676,4.281,3557.2,3556.9,2.81143231]
[1754298006677,4.281,3557.2,3556.8,0.1408]
[1754298006879,4.72318,3557.2,3556.7,2.81158192]
[1754298007079,0.1408,3557.0,3556.7,2.81158192]
[1754298007412,0.1408,3557.0,3556.9,2.81143692]
[1754298008474,0.1408,3557.0,3556.5,0.1408]
[1754298008674,0.1408,3557.0,3556.9,2.81143692]
[1754298009101,0.1408,3557.0,3556.7,2.81151828]
[1754298009300,0.1408,3557.0,3556.5,0.1408]
[1754298009705,0.1408,3557.0,3556.5,2.95254741]
[1754298009902,0.72329514,3557.0,3556.4,2.81178348]
[1754298010209,0.1408,3556.8,3556.5,2.81169303]
[1754298010416,4.281,3556.7,3556.5,2.81169303]
[1754298010587,4.281,3556.7,3556.4,2.81181804]
[1754298011085,4.281,3556.7,3556.3,0.1408]
[1754298011086,4.281,3556.7,3556.5,2.81169943]
[1754298011286,4.281,3556.7,3556.6,2.81167407]
[1754298011914,4.281,3556.7,3556.5,2.81173095]
[1754298012115,4.281,3556.7,3556.3,0.1408]
[1754298012318,4.281,3556.7,3556.6,2.81167407]
[1754298012680,4.281,3556.7,3556.5,2.8117211]
[1754298013015,4.281,3556.7,3556.6,2.81167407]
[1754298013553,0.1408,3556.8,3556.7,2.81159501]
[1754298013712,4.28,3556.8,3556.6,0.1408]
[1754298013877,5.90424703,3557.3,3556.6,0.1408]
[1754298014082,4.28,3557.2,3557.0,2.81128394]
[1754298014283,4.28,3557.2,3557.0,0.1408]
[1754298014482,5.3126047,3557.2,3557.0,0.1408]
[1754298014783,0.55,3557.1,3557.0,0.1408]
[1754298014977,0.55,3557.1,3556.5,2.81170642]
[1754298015183,0.1408,3556.8,3556.7,2.81159501]
[1754298015506,4.4208,3556.8,3556.7,2.81159501]
[1754298015810,4.28,3556.8,3556.7,2.81159501]
[1754298017195,0.1408,3557.0,3556.8,2.81149919]
[1754298017398,4.28,3556.9,3556.7,2.81156201]
[1754298017581,0.1408,3557.0,3556.7,2.81156201]
[1754298017784,4.28,3556.8,3556.7,2.81156201]
[1754298019186,4.28,3556.8,3556.6,2.8116458]
[1754298019622,4.28,3556.8,3556.7,2.81159501]
[1754298020718,0.1418,3557.0,3556.9,2.81143692]
[1754298020920,4.4218,3557.0,3556.9,2.81143692]
[1754298021219,0.001,3557.0,3556.9,2.81143692]
[1754298021420,4.281,3557.0,3556.9,2.81143692]
[1754298021627,4.281,3557.0,3556.9,3.38782011]
[1754298022302,4.281,3557.0,3556.9,2.81143692]
[1754298023733,0.001,3557.0,3556.9,2.81143692]
[1754298024096,4.281,3557.0,3556.9,2.81143692]
[1754298026330,4.28,3557.0,3556.9,2.81143692]
[1754298027128,0.001,3557.0,3556.9,5.81143692]
[1754298027334,0.001,3557.0,3556.9,6.69063163]
[1754298028110,0.001,3557.0,3556.9,3.69063163]
[1754298040620,0.001,3557.0,3556.9,2.81143692]
[1754298043347,0.001,3557.0,3556.9,2.95223692]
[1754298048456,0.001,3557.0,3556.9,5.95223692]
[1754298050134,4.279,3557.4,3557.3,2.81112079]
[1754298050632,4.279,3557.4,3557.3,2.95192079]
[1754298051468,0.001,3557.4,3557.3,2.95192079]
[1754298051711,4.279,3557.4,3557.3,3.52823346]
[1754298053072,0.001,3557.4,3557.3,3.52823346]
[1754298053392,4.279,3557.4,3557.3,3.52823346]
[1754298056789,0.001,3557.4,3557.3,3.52823346]
[1754298056994,4.279,3557.4,3557.3,3.52823346]
[1754298058720,0.001,3557.4,3557.3,3.52823346]
[1754298058924,0.001,3557.8,3557.7,2.81080473]
[1754298059239,0.001,3558.0,3557.7,2.81080473]
[1754298059240,0.001,3558.0,3557.9,2.81064672]
[1754298059590,0.001,3558.0,3557.9,3.16351114]
[1754298060326,0.001,3558.0,3557.9,0.1408]
[1754298060486,0.001,3558.0,3557.3,0.21302611]
[1754298060688,0.001,3558.0,3557.0,2.81135788]
[1754298060689,0.6918,3558.0,3557.4,0.1408]
[1754298060902,1.13368,3558.0,3557.4,0.1408]
[1754298061186,0.1408,3557.6,3557.3,2.81106236]
[1754298061391,4.277,3557.5,3557.4,2.81104177]
[1754298061686,4.277,3557.5,3557.3,2.81109861]
[1754298061890,4.277,3557.5,3557.2,2.81117232]
[1754298063032,4.277,3557.5,3557.1,2.95207229]
[1754298063208,4.277,3557.5,3557.2,2.81114129]
[1754298063407,4.277,3557.5,3557.3,2.81111002]
[1754298063604,4.277,3557.5,3557.4,2.81104177]
[1754298063793,4.277,3557.5,3557.2,2.81114793]
[1754298064606,4.278,3557.5,3557.1,2.95201654]
[1754298064816,4.278,3557.5,3557.4,2.81104177]
[1754298065248,4.278,3557.5,3557.1,0.1408]
[1754298065602,4.278,3557.5,3557.4,2.81104177]
[1754298066630,4.278,3557.5,3557.3,2.81109948]
[1754298066832,4.278,3557.5,3557.1,2.95207469]
[1754298067135,4.278,3557.5,3557.1,0.1408]
[1754298067299,0.001,3557.5,3557.4,2.81104177]
[1754298067500,4.278,3557.5,3557.4,2.81104177]
[1754298067935,4.278,3557.5,3557.1,0.1408]
[1754298068244,0.1408,3557.3,3556.9,2.81343644]
[1754298068750,0.1408,3557.3,3557.0,2.81134151]
[1754298069042,0.1408,3557.3,3557.2,2.81119982]
[1754298069536,0.1408,3557.3,3556.9,0.002]
[1754298069753,0.1408,3557.3,3557.2,2.81119982]
[1754298070364,0.001,3557.5,3557.4,2.81104177]
[1754298070517,4.277,3557.3,3557.2,2.81119982]
[1754298073952,0.001,3557.5,3557.4,2.81104177]
[1754298074153,4.278,3557.5,3557.4,2.81104177]
[1754298074542,4.278,3557.5,3557.3,2.81110314]
[1754298074855,4.278,3557.5,3557.4,2.81104177]
[1754298075365,0.001,3557.5,3557.3,2.81108806]
[1754298075674,0.001,3557.5,3557.1,2.95205877]
[1754298075960,4.277,3557.4,3557.3,2.81108586]
[1754298079190,0.001,3557.5,3557.4,2.81104177]
[1754298079486,4.278,3557.5,3557.4,3.38733453]
[1754298079637,4.278,3557.5,3557.4,2.81104177]
[1754298080260,0.001,3557.5,3557.4,2.81104177]
[1754298080474,4.278,3557.5,3557.4,2.81104177]
[1754298080675,4.278,3557.5,3557.4,3.41544494]
[1754298080869,4.278,3557.5,3557.4,3.38733453]
[1754298081496,0.001,3558.0,3557.9,2.81064672]
[1754298081771,4.278,3558.0,3557.9,2.81064672]
[1754298081932,0.001,3558.0,3557.9,2.81064672]
[1754298082133,0.001,3558.0,3557.9,3.37278472]
[1754298082576,0.001,3558.0,3557.9,3.51358472]
[1754298084083,0.001,3558.0,3557.9,2.81064672]
[1754298084643,0.001,3558.0,3557.6,0.1408]
[1754298084644,0.001,3558.0,3557.8,2.81068577]
[1754298084844,0.001,3558.0,3557.7,2.81080032]
[1754298085081,0.1418,3558.0,3557.7,2.81080032]
[1754298085984,0.1418,3558.0,3557.8,2.81071198]
[1754298086284,0.1418,3558.0,3557.6,2.81081266]
[1754298086484,0.91972116,3558.0,3557.6,2.81081266]
[1754298087347,0.91972116,3558.0,3557.7,2.81079566]
[1754298087544,0.02161232,3557.9,3557.1,3.002]
[1754298087779,4.276,3557.8,3557.4,0.1408]
[1754298088050,4.276,3557.8,3557.7,2.81080473]
[1754298089353,4.276,3557.8,3557.6,2.81085136]
[1754298090078,4.276,3557.8,3557.7,2.81080473]
[1754298092376,4.276,3557.8,3557.5,2.81093517]
[1754298093186,2.81085418,3557.7,3557.4,0.1408]
[1754298093383,2.81085418,3557.7,3557.1,0.002]
[1754298093384,0.1408,3557.5,3557.1,2.81323164]
[1754298093683,0.1408,3557.5,3557.2,2.81114831]
[1754298094252,0.1408,3557.5,3557.1,2.81324273]
[1754298094451,0.9910599,3557.5,3557.1,2.81324273]
[1754298094762,0.9910599,3557.5,3557.1,0.002]
[1754298095163,0.9910599,3557.5,3557.1,2.81326329]
[1754298095368,0.9910599,3557.5,3557.1,0.002]
[1754298095555,0.1408,3557.5,3557.3,2.81110845]
[1754298095756,0.1408,3557.5,3557.2,2.81112763]
[1754298095997,4.276,3557.4,3557.3,2.81112079]
[1754298096658,4.276,3557.4,3557.3,2.95192079]
[1754298096871,0.1408,3557.8,3557.7,2.81080473]
[1754298097069,4.276,3557.8,3557.7,2.81080473]
[1754298097273,0.001,3558.0,3557.7,2.81080473]
[1754298097456,4.276,3557.9,3557.8,2.81072572]
[1754298101091,4.276,3557.9,3557.1,0.002]
[1754298101393,4.276,3557.9,3557.5,2.81094772]
[1754298101394,0.02161232,3557.8,3557.5,2.81094772]
[1754298101593,4.4168,3557.9,3557.5,2.81094772]
[1754298101813,2.81074129,3557.8,3557.4,0.1408]
[1754298101959,3.36074129,3557.8,3557.2,2.81116931]
[1754298102157,3.36074129,3557.8,3557.1,0.002]
[1754298102158,0.1408,3557.5,3557.3,2.81111287]
[1754298102364,4.276,3557.4,3557.3,2.81112079]
[1754298104202,0.1408,3557.5,3557.3,2.81112079]
[1754298104203,0.1408,3557.5,3557.4,2.81104177]
[1754298104493,0.001,3558.0,3557.9,2.81064672]
[1754298104700,4.277,3558.0,3557.9,2.81064672]
[1754298108219,0.55,3557.9,3557.3,0.002]
[1754298108508,0.1418,3557.8,3557.3,0.002]
[1754298108709,0.49688,3557.7,3557.3,0.002]
[1754298109017,0.1408,3557.5,3557.3,0.002]
[1754298109508,0.1408,3557.5,3557.3,2.81311072]
[1754298109688,0.1408,3557.5,3557.3,0.002]
[1754298110088,0.1408,3557.5,3557.3,2.8131147]
[1754298110775,0.1408,3557.5,3557.4,2.81104177]
[1754298112998,4.4168,3557.5,3557.4,2.81104177]
[1754298113212,4.276,3557.5,3557.4,2.81104177]
[1754298119034,4.276,3557.5,3557.3,0.002]
[1754298119390,0.71241232,3557.4,3557.3,0.002]
[1754298119617,6.50184177,3557.4,3557.3,0.002]
[1754298120044,8.19284177,3557.4,3557.3,0.002]
[1754298121729,6.50184177,3557.4,3557.3,0.002]
[1754298121931,11.87722154,3557.4,3557.3,0.002]
[1754298122129,7.60222154,3557.4,3557.3,0.002]
[1754298122294,11.87822154,3557.4,3557.3,0.002]
[1754298123038,13.56922154,3557.4,3557.3,0.002]
[1754298124331,11.87822154,3557.4,3557.3,0.002]
[1754298124531,41.87822154,3557.4,3557.3,0.002]
[1754298126757,11.87822154,3557.4,3557.3,0.002]
[1754298128225,7.60222154,3557.4,3557.3,0.002]
[1754298137482,3.6908,3557.4,3557.3,0.002]
[1754298138382,0.1408,3557.4,3557.3,0.002]
[1754298138534,0.1408,3557.4,3557.3,2.81312079]
[1754298139038,6.756,3557.5,3557.4,2.81104177]
[1754298139236,11.032,3557.5,3557.4,2.81104177]
[1754298139438,11.032,3557.5,3557.4,3.38773803]
[1754298140583,6.756,3557.5,3557.4,3.38773803]
[1754298140761,11.032,3557.5,3557.4,3.38773803]
[1754298141085,6.756,3557.5,3557.4,3.38773803]
[1754298141365,11.032,3557.5,3557.4,3.52853803]
[1754298143068,4.276,3557.5,3557.4,3.52853803]
[1754298145402,4.276,3557.5,3557.4,2.95184177]
[1754298145682,0.1418,3557.8,3557.7,2.81080473]
[1754298145845,4.276,3557.8,3557.7,2.81080473]
[1754298146475,0.001,3557.8,3557.7,2.81080473]
[1754298146677,4.276,3557.8,3557.7,2.81080473]
[1754298146850,0.001,3557.8,3557.7,3.38705439]
[1754298147053,0.001,3557.8,3557.7,3.41516243]
[1754298147255,4.276,3557.8,3557.7,3.38705439]
[1754298147655,0.001,3558.0,3557.8,5.81072572]
[1754298147857,0.001,3558.0,3557.9,5.81064672]
[1754298148062,1e-08,3558.0,3557.9,7.89316527]
[1754298148979,1e-08,3558.0,3557.9,5.81064672]
[1754298152242,1e-08,3558.0,3557.9,2.81064672]
[1754298155589,1e-08,3558.0,3557.9,2.83875318]
[1754298155968,1e-08,3558.0,3557.9,2.81064672]
[1754298156866,1e-08,3558.4,3558.3,5.81033077]
[1754298157181,1e-08,3558.4,3558.3,6.95346949]
[1754298157388,1.72585537,3560.0,3559.2,2.80962013]
[1754298157602,1.72585537,3560.0,3559.2,5.80962013]
[1754298157603,4.274,3559.7,3559.2,5.80962013]
[1754298157764,4.274,3559.7,3559.2,5.95042013]
[1754298158569,4.274,3559.7,3559.2,2.95042013]
[1754298159363,0.1408,3559.8,3559.2,2.95042013]
[1754298159561,4.273,3559.5,3559.2,3.52643304]
[1754298161996,0.1418,3560.1,3559.2,3.52643304]
[1754298162160,4.273,3559.7,3559.2,3.52643304]
[1754298163600,4.273,3559.7,3559.2,2.95042013]
[1754298165296,4.273,3559.6,3559.2,2.95042013]
[1754298165678,0.1418,3560.1,3559.2,2.95042013]
[1754298165888,4.273,3559.7,3559.2,2.95042013]
[1754298166723,0.001,3560.1,3559.2,2.95042013]
[1754298167019,4.273,3560.1,3559.2,2.97851633]
[1754298167823,4.273,3560.1,3559.2,5.97851633]
[1754298168101,0.001,3560.1,3559.2,5.95042013]
[1754298168396,0.001,3560.1,3559.2,10.22242013]
[1754298168613,0.001,3559.7,3559.2,11.52563304]
[1754298174705,0.001,3559.7,3559.2,23.12824237]
[1754298182210,0.001,3559.7,3559.2,7.25363304]